bitfinex/quotes_ETHUSD_20251116
["timestamp","ask_amount","ask_price","bid_price","bid_amount"]
[1763334953041,0.405504,3084.1,3083.0,0.4954]
[1763334953466,0.4802,3084.7,3083.0,0.4954]
[1763334953744,0.405504,3083.9,3082.7,0.86868703]
[1763334953977,0.405504,3083.9,3082.3,0.86868703]
[1763334954191,0.405504,3083.9,3082.4,0.86868703]
[1763334954192,0.4802,3083.8,3082.4,0.86868703]
[1763334954397,0.405504,3083.7,3082.0,0.86868703]
[1763334954542,0.405504,3083.7,3081.9,0.86868703]
[1763334954740,0.405504,3083.5,3081.9,0.86868703]
[1763334955139,0.405504,3083.5,3082.0,0.4954]
[1763334955455,1.467,3083.4,3082.3,0.86868703]
[1763334955774,0.002,3082.9,3082.3,0.86868703]
[1763334955940,0.002,3082.9,3082.4,0.4954]
[1763334956482,0.002,3082.9,3082.4,1.36408703]
[1763334956874,0.002,3082.9,3082.5,0.4954]
[1763334957281,1.467,3082.8,3082.6,0.86868703]
[1763334957480,1.467,3082.8,3082.7,0.4954]
[1763334957782,1.467,3082.8,3082.7,1.36408703]
[1763334958353,1.467,3082.8,3082.7,0.4954]
[1763334959446,0.002,3082.9,3082.7,0.4954]
[1763334959702,1.467,3083.0,3082.7,1.15817267]
[1763334959861,0.405504,3082.9,3082.0,0.001]
[1763334960187,0.405504,3082.7,3082.1,1.36011349]
[1763334960361,1.467,3082.6,3082.1,0.4954]
[1763334960556,1.467,3083.3,3082.4,1.15817267]
[1763334960867,1.467,3083.3,3082.2,1.15817267]
[1763334961074,0.098,3084.9,3082.3,1.35989406]
[1763334961247,0.098,3084.9,3082.0,0.001]
[1763334961248,1.467,3084.9,3084.8,0.1523]
[1763334961444,1.467,3084.9,3084.8,6.9751067]
[1763334961672,1.467,3085.7,3084.8,7.4705067]
[1763334961870,1.467,3085.7,3085.5,0.86395589]
[1763334962072,0.4802,3087.8,3085.6,1.99769669]
[1763334962273,1.467,3087.7,3086.6,0.86298321]
[1763334962487,1.467,3087.7,3086.4,0.86298321]
[1763334962791,0.4802,3087.6,3085.4,0.71298321]
[1763334962963,0.1733,3088.4,3085.6,1.1337408]
[1763334962964,1.466,3087.5,3085.6,1.1337408]
[1763334963164,1.466,3087.5,3085.5,7.33511018]
[1763334963165,1.466,3087.5,3086.1,1.15064428]
[1763334963788,1.466,3087.4,3086.3,1.1337408]
[1763334963951,1.466,3087.4,3086.3,2.28438508]
[1763334964153,1.466,3087.4,3086.4,0.4954]
[1763334964389,1.466,3087.3,3086.4,1.22891102]
[1763334964574,1.466,3087.3,3086.4,2.3795553]
[1763334964882,1.466,3087.3,3086.5,0.4954]
[1763334965454,1.466,3087.3,3086.3,1.1337408]
[1763334965455,1.466,3087.3,3086.3,1.15064428]
[1763334965653,1.466,3087.2,3086.4,0.4954]
[1763334965851,1.466,3087.2,3086.6,1.15064428]
[1763334966093,1.466,3087.7,3087.1,0.1901]
[1763334966249,1.466,3087.7,3087.3,1.15064428]
[1763334966451,1.466,3087.7,3086.7,1.15064428]
[1763334966452,0.4802,3087.6,3086.7,1.15064428]
[1763334966696,0.405504,3086.7,3085.0,2.83205071]
[1763334966855,0.405504,3086.7,3084.1,0.4954]
[1763334967055,0.405504,3086.5,3084.2,0.4954]
[1763334967608,0.405504,3086.3,3084.2,0.67755408]
[1763334967755,1.466,3086.2,3084.6,5.6890659]
[1763334968089,0.405504,3086.1,3084.7,1.1337408]
[1763334968288,0.4802,3086.7,3084.7,1.6291408]
[1763334968454,1.871504,3086.6,3084.7,1.1337408]
[1763334968652,1.871504,3086.6,3084.1,0.6878]
[1763334968888,0.405504,3086.4,3083.2,5.6890659]
[1763334969109,0.405504,3086.4,3083.2,6.49043449]
[1763334969286,0.405504,3086.2,3083.3,1.8215408]
[1763334969590,1.5392448,3086.2,3082.8,2.32462001]
[1763334969884,1.5392448,3086.2,3082.3,0.4954]
[1763334969885,0.405504,3085.8,3082.3,0.4954]
[1763334970107,0.405504,3085.6,3082.3,0.4954]
[1763334970255,1.5392448,3085.6,3082.3,6.1844659]
[1763334970466,0.405504,3085.4,3082.4,0.61844659]
[1763334970671,0.405504,3085.4,3082.0,0.001]
[1763334970871,5.6890659,3085.0,3082.0,0.001]
[1763334971111,0.405504,3084.8,3082.0,0.001]
[1763334971276,0.405504,3084.6,3082.0,0.001]
[1763334971607,0.597204,3082.1,3082.0,0.001]
[1763334971813,0.597204,3082.1,3081.6,0.001]
[1763334972026,0.885704,3082.0,3079.6,0.4954]
[1763334972187,1.466,3081.9,3079.7,0.282002]
[1763334972392,0.885704,3081.8,3079.0,2.32462001]
[1763334972719,0.885704,3081.8,3078.9,0.6878]
[1763334973017,0.405504,3081.6,3079.4,1.1337408]
[1763334973205,0.405504,3081.6,3079.5,0.4954]
[1763334973530,2.32881864,3085.7,3079.5,0.4954]
[1763334973531,0.405504,3081.4,3080.1,1.1337408]
[1763334973735,0.405504,3081.4,3080.2,0.68228067]
[1763334973876,0.405504,3081.2,3080.2,1.17768067]
[1763334974246,0.4802,3082.1,3080.3,0.4954]
[1763334974452,1.466,3082.0,3080.8,1.1337408]
[1763334974809,0.6699,3083.1,3080.9,0.4954]
[1763334975154,0.4802,3083.0,3080.9,0.4954]
[1763334975318,0.4802,3083.0,3081.4,1.1337408]
[1763334975319,1.466,3082.9,3081.4,1.1337408]
[1763334975637,0.1917,3083.6,3081.3,5.6890659]
[1763334975844,1.466,3082.8,3081.4,0.4954]
[1763334976027,1.466,3082.7,3081.4,1.6291408]
[1763334976430,0.4802,3083.5,3081.4,1.6291408]
[1763334976431,1.466,3082.6,3081.5,0.4954]
[1763334976630,1.466,3082.5,3081.6,0.16291408]
[1763334977011,1.466,3082.4,3081.7,0.6514]
[1763334977214,1.466,3082.4,3080.9,2.79232001]
[1763334977544,1.466,3082.4,3080.9,0.4677]
[1763334977545,0.405504,3082.3,3080.9,0.4677]
[1763334978313,1.466,3082.2,3081.1,1.1337408]
[1763334978612,1.466,3082.2,3081.2,0.68228067]
[1763334978813,1.466,3082.2,3081.2,1.14998067]
[1763334979014,1.467,3082.1,3081.3,0.4677]
[1763334979312,1.467,3082.0,3081.5,2.32462001]
[1763334979516,1.467,3081.9,3081.5,2.32462001]
[1763334979710,1.467,3081.9,3081.6,1.7851408]
[1763334980152,1.467,3081.9,3081.7,0.4677]
[1763334980514,1.467,3081.8,3081.7,0.4677]
[1763334980714,1.467,3081.8,3080.7,2.91586599]
[1763334980715,1.467,3081.8,3081.0,2.79232001]
[1763334980914,0.405504,3081.7,3081.0,0.4677]
[1763334981148,0.405504,3081.7,3080.2,1.14998067]
[1763334981349,0.405504,3081.7,3080.3,0.4673]
[1763334981536,0.405504,3081.5,3079.6,0.6637]
[1763334981749,0.405504,3081.3,3080.2,0.4673]
[1763334982165,0.405504,3081.4,3080.2,0.4673]
[1763334982326,0.405504,3081.1,3079.6,0.1964]
[1763334982522,0.405504,3081.1,3079.7,0.4673]
[1763334982925,0.405504,3081.1,3079.6,0.56187608]
[1763334983126,0.4819,3081.6,3079.7,0.4673]
[1763334983484,0.1826,3082.4,3079.7,0.4673]
[1763334983690,1.467,3082.3,3080.1,2.32462001]
[1763334983840,1.467,3082.2,3080.3,3.45836081]
[1763334984159,1.467,3082.7,3080.2,0.232462]
[1763334984160,0.405504,3082.1,3080.2,0.232462]
[1763334984358,0.405504,3081.9,3080.3,0.4673]
[1763334984545,0.405504,3081.9,3079.6,0.1964]
[1763334984747,0.405504,3081.7,3079.6,0.6637]
[1763334984966,0.405504,3081.5,3079.6,0.6637]
[1763334985151,0.405504,3081.5,3079.7,0.4673]
[1763334985924,0.4819,3082.2,3079.8,0.405504]
[1763334986143,1.467,3082.1,3079.7,1.6010408]
[1763334986426,1.467,3082.1,3079.1,3.32136999]
[1763334986427,0.405504,3082.0,3079.3,2.32462001]
[1763334986741,0.887404,3082.0,3079.1,2.19152334]
[1763334986930,0.887404,3082.0,3079.2,1.72422334]
[1763334987130,1.5392448,3081.8,3079.4,1.72422334]
[1763334987625,0.405504,3081.6,3079.5,0.4673]
[1763334987830,0.405504,3081.4,3079.5,0.4673]
[1763334988050,0.405504,3081.5,3079.6,0.1964]
[1763334988330,0.405504,3081.3,3079.6,0.1964]
[1763334988566,0.405504,3081.3,3079.7,0.4673]
[1763334988962,1.467,3081.2,3079.7,0.4673]
[1763334989170,1.467,3081.1,3080.1,1.72422334]
[1763334989394,0.4819,3082.1,3080.2,0.63972233]
[1763334989696,1.467,3082.0,3080.2,0.63972233]
[1763334989864,0.668,3082.8,3080.3,2.19152334]
[1763334990062,3.4159,3082.7,3080.4,2.19152334]
[1763334990263,1.6156408,3082.6,3080.5,0.68645233]
[1763334990474,0.4819,3082.6,3080.5,0.68645233]
[1763334990695,0.4819,3082.6,3080.6,0.4673]
[1763334991097,0.002,3081.6,3080.8,1.72422334]
[1763334991296,0.002,3081.6,3081.1,1.72422334]
[1763334991599,0.002,3081.6,3080.7,1.1337408]
[1763334991600,0.002,3082.0,3081.5,0.1964]
[1763334991799,1.467,3081.9,3081.5,0.1964]
[1763334992005,1.467,3081.9,3081.6,0.4673]
[1763334992809,0.002,3082.0,3081.6,0.4673]
[1763334993009,1.467,3082.3,3081.8,2.32462001]
[1763334993167,0.4819,3085.0,3082.2,3.86386481]
[1763334993368,0.4819,3085.0,3082.9,1.7246042]
[1763334993763,0.4819,3085.0,3083.0,2.3883042]
[1763334993963,0.1861,3087.0,3083.5,1.7246042]
[1763334993964,0.1861,3085.2,3083.5,1.7246042]
[1763334994265,0.405504,3085.1,3083.7,1.7246042]
[1763334994473,0.4819,3085.6,3084.0,1.7246042]
[1763334994767,0.1861,3085.5,3084.1,1.7246042]
[1763334995104,0.1861,3085.5,3084.0,1.7246042]
[1763334995303,1.9489,3085.4,3083.9,1.7246042]
[1763334995691,0.1861,3087.0,3084.0,0.4673]
[1763334995891,3.4159,3086.2,3084.3,1.7246042]
[1763334996118,3.4159,3086.2,3084.1,1.7246042]
[1763334996268,3.4159,3086.2,3083.7,2.32462001]
[1763334996269,0.887404,3086.1,3083.9,1.7246042]
[1763334996469,1.467,3086.0,3084.7,1.7246042]
[1763334996669,2.6007408,3086.0,3084.9,1.15540843]
[1763334996897,0.405504,3085.9,3085.0,1.15540843]
[1763334997280,0.405504,3085.7,3084.8,1.15540843]
[1763334997584,0.405504,3085.5,3084.6,1.15540843]
[1763334997785,1.467,3085.4,3084.7,1.35180843]
[1763334997981,1.467,3085.4,3084.9,1.15540843]
[1763334998181,0.4819,3086.9,3085.1,1.15540843]
[1763334998378,1.467,3085.3,3085.0,3.92566081]
[1763334998702,1.467,3085.3,3085.2,1.1337408]
[1763334998888,0.4819,3087.5,3085.2,1.1337408]
[1763334999090,1.466,3087.4,3086.3,1.1549871]
[1763334999289,44.31492239,3087.7,3086.4,1.1549871]
[1763334999492,1.466,3087.3,3086.8,1.1549871]
[1763334999986,1.466,3087.3,3086.5,1.1549871]
[1763335000318,1.466,3087.3,3086.6,1.1549871]
[1763335000542,1.466,3087.2,3086.5,1.1549871]
[1763335000814,1.466,3087.1,3086.4,1.1549871]
[1763335001019,1.466,3087.0,3086.6,1.1549871]
[1763335001203,1.466,3087.0,3086.3,1.1549871]
[1763335001204,0.405504,3086.9,3086.3,1.1549871]
[1763335001379,0.887404,3086.9,3085.3,1.1549871]
[1763335001577,0.887404,3086.9,3084.3,1.1549871]
[1763335001781,0.405504,3086.7,3084.2,1.6222871]
[1763335002122,0.405504,3086.7,3084.3,1.6222871]
[1763335002282,0.405504,3086.5,3084.9,1.1549871]
[1763335002720,0.405504,3086.5,3085.0,1.6222871]
[1763335002922,0.405504,3086.5,3085.0,0.4673]
[1763335003099,0.405504,3086.5,3084.9,1.1549871]
[1763335003300,1.466,3086.9,3085.1,0.4673]
[1763335003301,0.405504,3086.3,3085.1,0.4673]
[1763335003495,1.1337408,3086.8,3085.1,0.4673]
[1763335003496,0.405504,3086.7,3085.1,0.4673]
[1763335003696,0.405504,3086.5,3085.1,0.4673]
[1763335004020,1.466,3087.0,3085.1,0.4673]
[1763335004222,1.466,3086.4,3085.5,1.1549871]
[1763335004435,1.466,3086.4,3085.6,1.1549871]
[1763335004621,1.466,3086.4,3085.6,1.6222871]
[1763335004821,1.466,3086.4,3085.7,1.6222871]
[1763335005027,1.466,3086.4,3085.8,1.1549871]
[1763335005225,1.466,3088.1,3085.9,1.1549871]
[1763335005538,1.466,3086.3,3086.1,1.1549871]
[1763335005834,1.466,3086.2,3086.0,0.62952871]
[1763335006038,1.466,3086.2,3086.1,0.4673]
[1763335006239,0.4819,3088.3,3086.1,1.61260712]
[1763335006539,1.466,3088.2,3086.4,1.14509359]
[1763335006724,0.405504,3088.1,3086.3,0.4673]
[1763335006916,0.887404,3088.1,3086.3,0.4673]
[1763335007236,0.887404,3088.1,3085.8,1.14509359]
[1763335007536,0.405504,3087.9,3085.9,0.4673]
[1763335008086,0.405504,3087.7,3085.9,0.4673]
[1763335008639,1.466,3088.0,3085.9,0.4673]
[1763335008640,0.405504,3087.5,3085.9,0.4673]
[1763335008824,0.405504,3088.1,3085.9,0.4673]
[1763335009136,0.405504,3087.3,3085.9,0.4673]
[1763335009540,0.405504,3087.3,3085.9,1.61239359]
[1763335009712,0.405504,3087.1,3085.5,1.14509359]
[1763335009914,0.405504,3087.1,3084.8,1.14509359]
[1763335010240,3.439,3088.8,3084.5,2.1851037]
[1763335010241,0.405504,3086.9,3084.6,1.61239359]
[1763335010411,0.405504,3086.9,3084.7,0.27461344]
[1763335010616,0.405504,3086.7,3084.7,0.74191344]
[1763335010820,0.4819,3087.5,3084.8,1.14509359]
[1763335011146,1.465,3086.6,3085.1,1.14509359]
[1763335011304,0.4819,3087.5,3085.2,1.14509359]
[1763335011508,0.4819,3087.5,3084.9,0.4673]
[1763335011509,1.465,3087.4,3085.5,1.14509359]
[1763335011944,1.465,3087.4,3085.6,1.87187703]
[1763335012318,0.002,3087.7,3085.8,1.14509359]
[1763335012521,1.465,3087.6,3085.9,1.14509359]
[1763335012731,1.465,3087.6,3086.0,1.64399359]
[1763335012943,1.465,3087.5,3086.0,1.64399359]
[1763335013146,1.465,3087.5,3086.1,1.42286703]
[1763335013720,1.465,3087.4,3086.2,0.4989]
[1763335014034,1.465,3087.3,3086.2,0.4989]
[1763335014360,1.465,3087.3,3086.1,1.42286703]
[1763335014642,1.465,3087.3,3086.1,1.92176703]
[1763335014844,1.465,3087.3,3086.2,0.6910767]
[1763335015046,0.4892,3087.7,3086.3,1.14509359]
[1763335015047,1.465,3087.2,3086.3,1.14509359]
[1763335015267,1.465,3087.2,3086.4,1.14509359]
[1763335015410,0.002,3087.7,3086.5,1.14509359]
[1763335015630,0.002,3087.7,3086.8,1.14509359]
[1763335015631,1.465,3087.6,3086.8,1.14509359]
[1763335016155,1.465,3087.6,3086.9,1.64399359]
[1763335016570,0.002,3087.7,3087.0,0.4989]
[1763335016771,1.465,3087.6,3087.0,1.64399359]
[1763335017075,1.465,3087.5,3087.4,1.14509359]
[1763335017253,1.465,3087.5,3087.3,1.7178037]
[1763335017428,1.465,3087.5,3087.4,1.14711612]
[1763335017628,1.465,3087.5,3087.0,1.14711612]
[1763335017629,0.4872,3087.4,3087.0,1.14711612]
[1763335017870,0.4872,3087.4,3086.5,1.14711612]
[1763335018033,0.4872,3087.4,3086.3,1.7178037]
[1763335018034,0.002,3087.7,3086.2,1.14711612]
[1763335018236,0.4872,3087.5,3086.4,1.14711612]
[1763335018470,1.465,3087.4,3086.4,1.14711612]
[1763335018671,1.465,3087.4,3085.3,2.91586599]
[1763335018672,0.405504,3087.3,3086.1,1.14711612]
[1763335018965,1.016004,3087.3,3084.7,1.7178037]
[1763335019130,0.405504,3087.1,3084.8,1.7178037]
[1763335019330,0.405504,3087.1,3084.6,1.7178037]
[1763335019542,0.405504,3086.9,3084.1,1.7178037]
[1763335019746,1.5392448,3086.9,3083.6,1.7178037]
[1763335020067,0.892704,3086.8,3083.3,1.7178037]
[1763335020270,0.892704,3086.8,3083.5,1.7178037]
[1763335020572,1.5392448,3086.6,3084.4,1.7178037]
[1763335020886,1.5392448,3086.4,3084.1,1.7178037]
[1763335021066,1.5392448,3086.4,3084.3,1.7178037]
[1763335021368,0.405504,3086.2,3084.5,1.7178037]
[1763335021572,0.405504,3086.2,3084.4,1.7178037]
[1763335021771,0.405504,3086.0,3084.3,1.7178037]
[1763335022066,0.405504,3086.0,3083.9,2.80887421]
[1763335022067,0.4872,3086.6,3085.0,1.7178037]
[1763335022255,1.465,3085.9,3085.2,1.7178037]
[1763335022459,0.4872,3086.6,3085.2,1.7178037]
[1763335022646,1.465,3085.8,3085.3,2.30997421]
[1763335022837,0.4892,3087.7,3085.7,2.30997421]
[1763335023144,0.002,3087.7,3087.1,1.73843764]
[1763335023346,1.465,3087.2,3087.1,0.1874]
[1763335023533,0.002,3087.7,3087.1,0.1874]
[1763335023738,0.09083496,3088.9,3087.2,4.54850679]
[1763335024051,1.465,3087.6,3087.3,1.60733148]
[1763335024245,0.09083496,3088.9,3087.4,0.405504]
[1763335024445,3.496e-05,3088.9,3088.5,2.8940001]
[1763335024771,3.496e-05,3088.9,3088.5,1.7373129]
[1763335025148,3.496e-05,3088.9,3087.7,2.8940001]
[1763335025149,3.496e-05,3088.9,3088.7,1.7373129]
[1763335025350,1.465,3088.8,3088.7,1.7373129]
[1763335025564,1.465,3088.8,3088.4,2.31523833]
[1763335026057,1.465,3088.8,3088.5,2.81413833]
[1763335026388,1.465,3089.4,3088.7,0.405504]
[1763335026668,1.465,3089.3,3089.0,2.31246357]
[1763335026909,0.4872,3091.8,3088.9,2.31246357]
[1763335027056,1.465,3091.4,3090.0,0.86717079]
[1763335027258,0.4872,3091.8,3090.0,0.86717079]
[1763335027457,0.4872,3091.8,3089.2,2.31246357]
[1763335027458,1.465,3091.7,3090.6,0.86717079]
[1763335027669,1.465,3091.7,3090.4,0.86717079]
[1763335027868,0.4872,3091.6,3089.1,0.86717079]
[1763335028178,0.4872,3091.6,3089.1,0.86732373]
[1763335028179,1.5392448,3091.4,3089.1,0.86732373]
[1763335028362,1.5392448,3091.4,3088.9,0.86732373]
[1763335028363,0.405504,3091.4,3088.9,0.86732373]
[1763335028568,1.5392448,3091.2,3089.0,0.86732373]
[1763335028764,0.4872,3091.3,3089.0,0.86732373]
[1763335028940,3.4152,3091.2,3089.7,0.86732373]
[1763335029138,3.4152,3091.2,3089.6,0.86732373]
[1763335029339,0.1865,3091.9,3089.5,0.86732373]
[1763335029340,0.4872,3091.1,3089.5,0.86732373]
[1763335029543,0.4872,3091.8,3090.1,0.86732373]
[1763335029789,0.4872,3091.8,3090.4,0.86732373]
[1763335029790,2.928,3091.7,3090.4,0.86732373]
[1763335030021,0.002,3091.4,3090.6,0.86732373]
[1763335030140,0.002,3091.4,3089.8,0.1874]
[1763335030141,0.002,3091.4,3090.7,0.86732373]
[1763335030502,0.002,3091.4,3090.6,0.86732373]
[1763335030710,0.4872,3091.3,3089.9,0.86732373]
[1763335030915,0.405504,3091.2,3089.4,0.86732373]
[1763335031215,0.002,3091.4,3089.4,0.86732373]
[1763335031421,0.002,3091.4,3089.1,0.4989]
[1763335031422,0.002,3091.4,3091.2,0.1874]
[1763335031562,0.002,3091.4,3091.2,2.49986357]
[1763335031764,0.4872,3093.8,3091.3,0.74888636]
[1763335032060,0.1865,3094.4,3092.5,0.862465]
[1763335032061,1.464,3092.8,3092.5,0.862465]
[1763335032292,2.51531864,3097.6,3092.6,0.4989]
[1763335032293,0.4872,3095.1,3092.6,0.4989]
[1763335032596,1.464,3095.0,3094.0,0.85921252]
[1763335032796,1.464,3095.0,3093.6,0.85921252]
[1763335033303,1.464,3094.9,3093.5,1.35811252]
[1763335033507,1.464,3094.9,3093.5,0.85921252]
[1763335033663,1.464,3094.9,3093.6,0.85921252]
[1763335033859,0.09083496,3095.5,3093.7,0.85921252]
[1763335034103,1.9512,3095.4,3093.4,0.85921252]
[1763335034277,1.6209408,3095.4,3092.6,0.85921252]
[1763335034475,1.5392448,3095.2,3092.6,0.85921252]
[1763335034674,0.405504,3095.0,3091.8,0.85921252]
[1763335034988,1.5392448,3094.8,3091.8,0.85921252]
[1763335035172,0.405504,3094.9,3091.9,0.85921252]
[1763335035372,0.405504,3094.6,3091.9,0.85921252]
[1763335035587,0.405504,3094.4,3092.0,1.35811252]
[1763335035788,1.5392448,3094.4,3092.0,0.4989]
[1763335036114,1.9502,3094.3,3092.2,0.85921252]
[1763335036315,1.9502,3094.3,3092.1,1.35811252]
[1763335036518,1.463,3094.2,3092.2,0.85921252]
[1763335036680,1.463,3094.2,3092.5,0.85921252]
[1763335036860,0.405504,3094.1,3092.3,1.34181254]
[1763335037204,1.463,3094.0,3092.3,1.34181254]
[1763335037379,1.463,3094.0,3092.3,0.4886]
[1763335037696,1.463,3093.9,3092.4,1.34181254]
[1763335037914,1.463,3093.9,3092.5,1.34181254]
[1763335038064,0.405504,3093.8,3092.3,0.85321254]
[1763335038271,0.405504,3093.8,3091.2,0.1874]
[1763335038272,0.895304,3093.8,3091.2,0.1874]
[1763335038510,0.895304,3093.8,3090.6,0.85321254]
[1763335038677,0.405504,3093.6,3090.7,0.4886]
[1763335038887,0.405504,3093.4,3090.7,0.4886]
[1763335039086,0.405504,3093.4,3090.8,0.61474716]
[1763335039307,0.405504,3093.2,3090.7,0.4886]
[1763335039503,0.405504,3093.0,3091.3,5.65887163]
[1763335039807,0.405504,3093.0,3091.3,5.84027163]
[1763335040014,0.405504,3092.8,3090.6,0.4886]
[1763335040219,1.5392448,3092.8,3090.7,5.65887163]
[1763335040526,0.405504,3092.6,3090.8,0.56588716]
[1763335040670,0.405504,3092.6,3090.8,1.05448716]
[1763335040671,0.405504,3092.4,3090.8,1.05448716]
[1763335040871,0.405504,3092.4,3090.1,0.85321254]
[1763335041137,0.405504,3092.4,3089.4,0.85321254]
[1763335041138,0.405504,3092.2,3089.4,0.85321254]
[1763335041410,1.5392448,3092.0,3089.0,0.001]
[1763335041712,1.5392448,3091.8,3089.0,0.001]
[1763335041877,1.463,3091.7,3089.0,0.001]
[1763335042077,1.868504,3091.6,3089.2,5.65887163]
[1763335042283,0.405504,3091.4,3089.0,0.001]
[1763335042672,0.405504,3091.2,3089.0,0.001]
[1763335043030,1.463,3091.1,3089.9,5.65887163]
[1763335043173,0.405504,3091.0,3089.2,6.51208417]
[1763335043371,0.405504,3091.0,3089.3,0.4847]
[1763335044185,1.463,3091.1,3089.3,1.33791254]
[1763335044385,1.463,3091.1,3089.2,6.51208417]
[1763335044386,0.900204,3091.0,3089.2,6.51208417]
[1763335044587,0.900204,3091.0,3089.0,0.001]
[1763335044787,0.405504,3090.8,3089.0,0.001]
[1763335045198,3.4207,3090.7,3089.0,0.001]
[1763335045401,1.5392448,3090.6,3089.0,0.001]
[1763335045601,1.1337408,3093.1,3089.1,0.4847]
[1763335045817,0.1957,3091.4,3089.3,1.98695334]
[1763335045986,0.1957,3091.4,3089.4,0.7645825]
[1763335046182,3.4207,3091.3,3089.4,2.10249504]
[1763335046424,1.868504,3091.2,3089.5,0.4847]
[1763335046588,0.405504,3091.0,3089.5,0.4847]
[1763335046787,0.405504,3091.0,3089.2,6.51208417]
[1763335047025,0.405504,3090.8,3089.0,0.001]
[1763335047390,0.405504,3090.6,3089.0,0.001]
[1763335047590,1.5392448,3090.4,3089.0,0.001]
[1763335048007,0.1957,3091.4,3089.0,0.001]
[1763335048008,0.405504,3090.2,3089.0,0.001]
[1763335048302,1.66471592,3095.3,3089.3,1.1337408]
[1763335048514,0.09083496,3095.5,3089.1,0.4847]
[1763335048515,3.4207,3092.6,3090.1,0.1802]
[1763335048839,1.1337408,3092.5,3090.2,5.65887163]
[1763335048988,0.405504,3092.4,3090.1,1.03341254]
[1763335049191,0.4947,3092.4,3090.1,0.1802]
[1763335049496,0.4947,3092.4,3090.0,0.4847]
[1763335049717,0.4947,3092.4,3090.1,0.4847]
[1763335050092,1.463,3092.3,3090.6,1.1337408]
[1763335050411,0.002,3092.1,3090.8,0.85321254]
[1763335050721,0.002,3092.1,3090.2,1.1337408]
[1763335050722,0.002,3092.1,3090.3,0.85321254]
[1763335050939,0.4967,3092.1,3090.3,0.85321254]
[1763335051085,0.002,3092.1,3090.4,0.4847]
[1763335051285,0.002,3092.1,3090.8,0.85321254]
[1763335051520,0.002,3092.1,3091.2,4.29258565]
[1763335051704,0.002,3092.1,3091.7,0.85321254]
[1763335051705,1.463,3092.0,3091.7,0.85321254]
[1763335052188,1.463,3092.0,3091.9,0.85321254]
[1763335052388,1.463,3092.0,3091.8,0.85321254]
[1763335052587,0.002,3092.1,3091.6,0.85321254]
[1763335052813,1.463,3092.0,3091.6,0.85321254]
[1763335053387,1.463,3092.0,3091.8,0.85321254]
[1763335054232,0.900204,3091.9,3091.6,0.85321254]
[1763335054412,0.900204,3091.9,3091.1,0.85321254]
[1763335054615,0.900204,3091.9,3090.7,1.71842504]
[1763335054616,0.405504,3091.7,3090.7,0.85321254]
[1763335054933,0.405504,3090.7,3089.9,0.85321254]
[1763335055103,0.405504,3090.7,3089.6,0.85321254]
[1763335055304,1.5392448,3090.5,3089.7,0.86519782]
[1763335055688,0.1957,3090.8,3089.6,0.86519782]
[1763335055888,0.405504,3090.6,3089.9,0.86519782]
[1763335056088,1.463,3090.7,3089.9,0.86519782]
[1763335056429,0.900204,3090.6,3089.8,0.86519782]
[1763335056632,0.900204,3090.6,3089.7,0.86519782]
[1763335056815,1.1337408,3090.4,3089.8,0.86519782]
[1763335057314,0.405504,3090.3,3089.6,0.86519782]
[1763335057713,0.405504,3090.3,3089.1,1.71842504]
[1763335057714,0.900204,3090.3,3089.3,0.86519782]
[1763335058025,0.900204,3090.3,3089.2,0.86519782]
[1763335058251,1.5392448,3090.1,3089.4,0.86519782]
[1763335058447,1.5392448,3090.1,3089.1,0.86519782]
[1763335058725,0.601204,3089.1,3089.0,0.001]
[1763335059109,0.405504,3089.0,3088.7,0.001]
[1763335059493,0.405504,3088.8,3087.5,0.86519782]
[1763335059693,0.405504,3088.8,3087.3,0.86519782]
[1763335059943,0.405504,3088.6,3087.3,0.86519782]
[1763335060402,0.405504,3088.6,3087.2,0.86519782]
[1763335060603,0.1957,3089.1,3087.6,0.86519782]
[1763335060826,0.900204,3089.0,3087.8,0.86519782]
[1763335061015,0.405504,3089.0,3088.0,0.86519782]
[1763335061553,0.405504,3089.0,3087.9,0.86519782]
[1763335061751,0.405504,3088.8,3087.7,0.86519782]
[1763335061953,0.405504,3088.8,3087.5,0.86519782]
[1763335062251,0.405504,3088.6,3086.9,0.86519782]
[1763335062436,0.405504,3088.6,3086.8,0.86519782]
[1763335062635,0.405504,3088.4,3086.7,0.86519782]
[1763335062843,0.405504,3088.4,3086.8,0.86519782]
[1763335063136,0.900204,3088.4,3086.8,0.86519782]
[1763335063344,0.4947,3089.0,3087.2,0.86519782]
[1763335063685,0.4947,3089.0,3087.4,0.86519782]
[1763335063969,0.1957,3089.6,3088.1,0.86519782]
[1763335064118,0.1957,3089.6,3088.2,0.86519782]
[1763335064519,0.1957,3089.6,3087.9,4.34469432]
[1763335064520,0.1957,3089.6,3088.3,0.86519782]
[1763335064659,0.4947,3089.8,3088.5,0.86519782]
[1763335064881,0.4947,3089.8,3088.4,0.86519782]
[1763335065084,0.4947,3089.8,3088.1,0.86519782]
[1763335065230,1.869504,3089.7,3087.6,0.86519782]
[1763335065433,0.405504,3089.5,3087.6,0.86519782]
[1763335065625,0.405504,3089.5,3087.8,0.86519782]
[1763335065626,1.869504,3089.5,3087.8,0.86519782]
[1763335065836,1.464,3089.4,3088.3,0.86519782]
[1763335066082,1.464,3089.4,3088.9,0.86519782]
[1763335066773,0.1957,3090.5,3089.1,0.86519782]
[1763335066934,2.928,3090.4,3089.1,0.86519782]
[1763335067368,3.4227,3090.4,3089.2,0.86519782]
[1763335067571,1.1337408,3090.3,3089.2,0.86519782]
[1763335067884,3.4227,3090.4,3089.2,0.86519782]
[1763335068088,0.4947,3090.4,3089.2,0.86519782]
[1763335068286,1.464,3090.3,3089.5,0.86519782]
[1763335068439,1.9587,3090.3,3089.4,0.86519782]
[1763335068643,0.405504,3090.2,3089.4,0.86519782]